lending/lending_fUSD_20240130
["ID","MTS","AMOUNT","RATE_DAILY","PERIOD"]
[313026550,1706644245054,-150.0,0.00022972,2]
[313026552,1706644245063,-300.0,0.00022974,2]
[313026553,1706644245072,-150.0,0.00022978,2]
[313026555,1706644245082,-150.0,0.00022981,2]
[313026556,1706644245091,-150.0,0.00022982,2]
[313026557,1706644245100,-150.0,0.00022983,2]
[313026558,1706644245109,-116705.0538666,0.00022984,2]
[313026559,1706644245118,-43846.4706591,0.00022984,2]
[313026560,1706644245127,-61816.1766651,0.00022984,2]
[313026561,1706644245136,-117033.5170666,0.00022984,2]
[313026562,1706644245146,-245.22630715,0.00022987,2]
[313026563,1706644245155,-150.0,0.0002299,2]
[313026564,1706644245164,-150.0,0.00022991,2]
[313026565,1706644245173,-177.67713643,0.00022994,2]
[313026566,1706644245182,-162.48097775,0.00022994,2]
[313026567,1706644245191,-544.07186673,0.00022994,2]
[313026568,1706644245200,-155.0,0.00022994,2]
[313026569,1706644245209,-156.44943752,0.00022994,2]
[313026570,1706644245218,-474.00032443,0.00022994,2]
[313026571,1706644245227,-220.81445407,0.00022994,2]
[313026572,1706644245236,-10620.23333302,0.00022994,2]
[313026573,1706644245245,-533.21665731,0.00022994,2]
[313026574,1706644245254,-362.38050012,0.00022994,2]
[313026575,1706644245263,-155.0,0.00022995,2]
[313026576,1706644245272,-287.96041171,0.00022995,2]
[313026577,1706644245281,-246.97993419,0.00022995,2]
[313026578,1706644245289,-758.67223339,0.00022995,2]
[313026579,1706644245299,-150.0,0.00022995,2]
[313026580,1706644245308,-190.53686143,0.00022996,2]
[313026581,1706644245317,-226.59728651,0.00022996,2]
[313026582,1706644245325,-1838.12174415,0.00022996,2]
[313026583,1706644245335,-1230.05731595,0.00022996,2]
[313026584,1706644245343,-759.85100312,0.00022996,2]
[313026585,1706644245352,-286.90300861,0.00022996,2]
[313026586,1706644245361,-215.26109869,0.00022996,2]
[313026587,1706644245371,-162.77421475,0.00022996,2]
[313026588,1706644245380,-460.22942243,0.00022996,2]
[313026589,1706644245389,-7796.70726592,0.00022996,2]
[313026590,1706644245398,-318.30314444,0.00022996,2]
[313026591,1706644245407,-300.60047308,0.00022996,2]
[313026592,1706644245416,-3148.06260981,0.00022996,2]
[313026593,1706644245426,-4695.32009176,0.00022996,2]
[313026594,1706644245435,-208.35650047,0.00022996,2]
[313026595,1706644245444,-3409.31715413,0.00022996,2]
[313026596,1706644245453,-393.999427,0.00022996,2]
[313026597,1706644245462,-228.68492109,0.00022996,2]
[313026598,1706644245472,-977.68902544,0.00022996,2]
[313026599,1706644245481,-155.11976048,0.00022996,2]
[313026600,1706644245490,-208.40334228,0.00022996,2]
[313026601,1706644245499,-517.03756338,0.00022996,2]
[313026602,1706644245509,-1145.64112519,0.00022996,2]
[313026603,1706644245519,-300.9098558,0.00022996,2]
[313026604,1706644245529,-469.08257724,0.00022996,2]
[313026605,1706644245539,-236.03866081,0.00022996,2]
[313026606,1706644245548,-289.73260612,0.00022996,2]
[313026607,1706644245557,-214.19078987,0.00022996,2]
[313026608,1706644245565,-5851.71164215,0.00022996,2]
[313026609,1706644245574,-476.72774164,0.00022997,2]
[313026610,1706644245585,-4622.60225803,0.00022997,2]
[313026611,1706644245593,-158.79636252,0.00022997,2]
[313026612,1706644245602,-172.45863879,0.00022997,2]
[313026613,1706644245613,-4353.97613252,0.00022998,2]
[313026614,1706644245622,-475.08618262,0.00022999,2]
[313026615,1706644245631,-392.6640714,0.00022999,10]
[313026616,1706644245640,-314.7119855,0.00022999,10]
[313026617,1706644245649,-500.0,0.00022999,2]
[313026618,1706644245658,-500.0,0.00022999,2]
[313026619,1706644245668,-500.0,0.00022999,2]
[313026620,1706644245677,-500.0,0.00022999,2]
[313026621,1706644245686,-500.0,0.00022999,2]
[313026623,1706644245695,-500.0,0.00022999,2]
[313026624,1706644245705,-500.0,0.00022999,2]
[313026625,1706644245714,-500.0,0.00022999,2]
[313026626,1706644245724,-500.0,0.00022999,2]
[313026627,1706644245733,-500.0,0.00022999,2]
[313026628,1706644245743,-500.0,0.00022999,2]
[313026629,1706644245752,-500.0,0.00022999,2]
[313026630,1706644245763,-500.0,0.00022999,2]
[313026631,1706644245773,-500.0,0.00022999,2]
[313026632,1706644245782,-500.0,0.00022999,2]
[313026633,1706644245792,-500.0,0.00022999,2]
[313026634,1706644245801,-500.0,0.00022999,2]
[313026635,1706644245811,-500.0,0.00022999,2]
[313026636,1706644245821,-500.0,0.00022999,2]
[313026637,1706644245830,-500.0,0.00022999,2]
[313026638,1706644245839,-500.0,0.00022999,2]
[313026639,1706644245848,-500.0,0.00022999,2]
[313026640,1706644245858,-500.0,0.00022999,2]
[313026641,1706644245867,-500.0,0.00022999,2]
[313026642,1706644245876,-601.38237698,0.00022999,2]
[313026643,1706644245885,-500.0,0.00022999,2]
[313026644,1706644245894,-500.0,0.00022999,2]
[313026645,1706644245904,-500.0,0.00022999,2]
[313026646,1706644245913,-500.0,0.00022999,2]
[313026647,1706644245922,-500.0,0.00022999,2]
[313026648,1706644245932,-500.0,0.00022999,2]
[313026649,1706644245941,-500.0,0.00022999,2]
[313026650,1706644245950,-500.0,0.00022999,2]
[313026651,1706644245959,-500.0,0.00022999,2]
[313026652,1706644245968,-500.0,0.00022999,2]
[313026653,1706644245977,-630.0,0.00022999,2]
[313026654,1706644245986,-500.0,0.00022999,2]
[313026655,1706644245996,-500.0,0.00022999,2]
[313026656,1706644246005,-500.0,0.00022999,2]
[313026657,1706644246016,-500.0,0.00022999,2]
[313026658,1706644246025,-500.0,0.00022999,2]
[313026659,1706644246034,-500.0,0.00022999,2]
[313026660,1706644246043,-1000.0,0.00022999,5]
[313026661,1706644246053,-1000.0,0.00022999,5]
[313026662,1706644246062,-826.31972725,0.00022999,5]
[313026663,1706644246071,-300.0,0.00022999,2]
[313026664,1706644246080,-300.0,0.00022999,2]
[313026665,1706644246090,-300.0,0.00022999,2]
[313026666,1706644246099,-300.0,0.00022999,2]
[313026667,1706644246109,-300.0,0.00022999,2]
[313026668,1706644246118,-167.92454049,0.00022999,2]
[313026669,1706644246128,-503314.12828831,0.00023,2]
[313026670,1706644246137,-793136.53395839,0.00023,2]
[313026671,1706644246146,-198.21015724,0.00023,2]
[313026672,1706644246155,-155.40512558,0.00023,2]
[313026673,1706644246164,-283.71200153,0.00023,2]
[313026674,1706644246173,-226.13902132,0.00023,2]
[313026675,1706644246183,-666.92272033,0.00023,2]
[313026676,1706644246192,-2000.0,0.00023,2]
[313026677,1706644246201,-200.0,0.00023,2]
[313026678,1706644246210,-2000.0,0.00023,2]
[313026679,1706644246220,-200.0,0.00023,2]
[313026680,1706644246230,-2000.0,0.00023,2]
[313026681,1706644246239,-200.0,0.00023,2]
[313026682,1706644246248,-150.0,0.00023,2]
[313026683,1706644246258,-214.41,0.00023,2]
[313026684,1706644246268,-2000.0,0.00023,2]
[313026685,1706644246277,-200.0,0.00023,2]
[313026686,1706644246288,-13785.0955783,0.00023006,2]
[313026687,1706644246298,-124708.1466666,0.00023006,2]
[313026688,1706644246308,-188.17,0.00023025,2]
[313026689,1706644246317,-188.17,0.00023085,2]
[313026690,1706644246327,-350.4,0.00023106,2]
[313026691,1706644246336,-1331.72455972,0.00023176,2]
[313026692,1706644246346,-2000.0,0.0002323,2]
[313026693,1706644246355,-200.0,0.0002323,2]
[313026694,1706644246364,-2000.0,0.0002323,2]
[313026695,1706644246374,-200.0,0.0002323,2]
[313026696,1706644246383,-2000.0,0.0002323,2]
[313026697,1706644246392,-200.0,0.0002323,2]
[313026698,1706644246401,-2000.0,0.0002323,2]
[313026699,1706644246411,-200.0,0.0002323,2]
[313026700,1706644246420,-196.49921984,0.00023401,2]
[313026701,1706644246430,-2241.5,0.0002343,2]
[313026702,1706644246439,-2000.0,0.00023462,2]
[313026703,1706644246449,-200.0,0.00023462,2]
[313026704,1706644246458,-2000.0,0.00023462,2]
[313026705,1706644246468,-200.0,0.00023462,2]
[313026706,1706644246477,-2000.0,0.00023462,2]
[313026707,1706644246487,-200.0,0.00023462,2]
[313026708,1706644246496,-196.49921984,0.00023501,2]
[313026709,1706644246505,-196.49921984,0.00023601,2]
[313026710,1706644246514,-2000.0,0.00023697,2]
[313026711,1706644246523,-200.0,0.00023697,2]
[313026712,1706644246536,-2000.0,0.00023697,2]
[313026713,1706644246545,-200.0,0.00023697,2]
[313026714,1706644246555,-2000.0,0.00023697,2]
[313026715,1706644246564,-200.0,0.00023697,2]
[313026716,1706644246573,-196.49921984,0.00023701,2]
[313026717,1706644246584,-196.49921984,0.00023802,2]
[313026718,1706644246593,-768.75,0.00023877,2]
[313026719,1706644246603,-196.49921984,0.00023902,2]
[313026720,1706644246612,-169.8,0.00023921,2]
[313026721,1706644246622,-2000.0,0.00023934,2]
[313026722,1706644246631,-200.0,0.00023934,2]
[313026723,1706644246641,-2000.0,0.00023934,2]
[313026724,1706644246650,-200.0,0.00023934,2]
[313026725,1706644246659,-2000.0,0.00023934,2]
[313026726,1706644246669,-200.0,0.00023934,2]
[313026727,1706644246679,-200.51529435,0.00024,2]
[313026728,1706644246688,-196.49921984,0.00024002,2]
[313026729,1706644246697,-153.48051278,0.00024067,2]
[313026730,1706644246707,-17930.0,0.000241,2]
[313026731,1706644246717,-2869.0,0.000241,2]
[313026732,1706644246726,-196.49921984,0.00024102,2]
[313026733,1706644246735,-196.49921984,0.00024202,2]
[313026734,1706644246745,-167.0,0.00024297,2]
[313026736,1706644246753,-167.0,0.00024297,2]
[313026737,1706644246762,-150.58177433,0.000243,2]
[313026739,1706644246772,-196.49921984,0.00024303,2]
[313026741,1706644246781,-762.36,0.00024371,2]
[313026744,1706644246791,-7652.89,0.00024384,2]
[313026746,1706644246801,-3415.95,0.00024384,2]
[313026748,1706644246810,-196.49921984,0.00024403,2]
[313026750,1706644246819,-2877.90932172,0.00024445,2]
[313026752,1706644246828,-758.08,0.00024499,2]
[313026754,1706644246838,-302.4,0.000245,2]
[313026756,1706644246847,-196.49921984,0.00024503,2]
[313026758,1706644246856,-237.89,0.00024658,4]
[313026765,1706644246866,-2536.95,0.00024658,4]
[313026767,1706644247013,-250.0,0.00024658,2]
[313026769,1706644247023,-768.75,0.00024721,2]
[313026771,1706644247031,-1587.92031382,0.00025,2]
[313026773,1706644247040,-935.98268242,0.00025,2]
[313026775,1706644247050,-1904.53326151,0.00025,2]
[313026777,1706644247059,-202.54115654,0.00025,2]
[313026779,1706644247068,-167.80869471,0.00025,2]
[313026781,1706644247077,-304.2742515,0.00025,2]
[313026783,1706644247086,-510.0856496,0.00025,2]
[313026785,1706644247094,-1250.0,0.00025,3]
[313026787,1706644247104,-207.78272895,0.00025,2]
[313026789,1706644247112,-169.8,0.00025008,2]
[313026791,1706644247124,-2241.5,0.00025074,2]
[313026793,1706644247133,-608.81209181,0.00025128,2]
[313026795,1706644247142,-153.48051278,0.00025233,2]
[313026798,1706644247152,-768.75,0.00025566,2]
[313026799,1706644247161,-2877.90932172,0.00025991,2]
[313026801,1706644247171,-150.0,0.00026079,2]
[313026803,1706644247180,-169.8,0.00026095,2]
[313026805,1706644247189,-167.0,0.00026302,2]
[313026807,1706644247198,-96208.9501333,0.00026303,2]
[313026809,1706644247207,-835.0,0.00026321,2]
[313026811,1706644247216,-1263.0,0.00026321,2]
[313026813,1706644247225,-528.0,0.00026321,2]
[313026815,1706644247234,-1235.0,0.00026321,2]
[313026817,1706644247243,-757.503,0.00026321,2]
[313026819,1706644247252,-210.0,0.00026321,2]
[313026821,1706644247261,-2914.0,0.00026321,2]
[313026823,1706644247270,-8110.0,0.00026321,2]
[313026825,1706644247279,-2280.0,0.00026321,2]
[313026828,1706644247289,-7365.0,0.00026321,2]
[313026830,1706644247298,-19763.0,0.00026321,2]
[313026832,1706644247308,-5588.0,0.00026321,2]
[313026834,1706644247317,-4182.0,0.00026321,2]
[313026835,1706644247326,-1033.0,0.00026321,2]
[313026837,1706644247336,-153.48051278,0.000264,2]
[313026839,1706644247345,-768.75,0.0002641,2]
[313026842,1706644247355,-762.36,0.00026634,2]
[313026844,1706644247364,-2241.5,0.00026718,2]
[313026845,1706644247374,-417.03654646,0.00027,2]
[313026846,1706644247383,-1300.0,0.00027,3]
[313026847,1706644247392,-758.08,0.00027222,2]
[313026849,1706644247401,-302.4,0.00027222,2]
[313026850,1706644247410,-768.75,0.00027255,2]
[313026851,1706644247418,-314.0,0.000273,2]
[313026852,1706644247427,-155.0,0.00027397,2]
[313026853,1706644247436,-150.0,0.00027397,2]
[313026854,1706644247445,-167.09,0.00027397,2]
[313026855,1706644247454,-1313.93,0.00027397,2]
[313026856,1706644247463,-6630.76,0.00027397,2]
[313026857,1706644247472,-384.65624658,0.00027403,2]
[313026858,1706644247481,-501.39378659,0.00027404,2]
[313026859,1706644247490,-211.89158902,0.00027405,2]
[313026860,1706644247500,-155.39208783,0.000275,2]
[313026861,1706644247509,-506.0,0.00027525,5]
[313026862,1706644247519,-2877.90932172,0.00027536,2]
[313026863,1706644247529,-36095.5910687,0.00027537,2]
[313026864,1706644247540,-50888.7351889,0.00027537,2]
[313026865,1706644247549,-6630.76,0.00027556,2]
[313026866,1706644247558,-153.48051278,0.00027567,2]
[313026867,1706644247567,-608.81209181,0.0002759,3]
[313026868,1706644247576,-1313.93,0.00027614,2]
[313026869,1706644247586,-535.47499119,0.00027656,2]
[313026870,1706644247595,-6630.76,0.00027714,2]
[313026871,1706644247604,-1313.93,0.0002783,2]
[313026872,1706644247615,-6630.76,0.00027872,2]
[313026873,1706644247625,-150.0,0.00027945,2]
[313026874,1706644247634,-690.73183614,0.00028,2]
[313026875,1706644247643,-2842.00716372,0.00028,2]
[313026876,1706644247653,-200.86162821,0.00028,2]
[313026877,1706644247662,-6630.76,0.0002803,2]
[313026878,1706644247671,-500.0,0.00028046,2]
[313026879,1706644247680,-500.0,0.00028046,2]
[313026880,1706644247689,-500.0,0.00028046,2]
[313026881,1706644247698,-500.0,0.00028046,2]
[313026882,1706644247707,-500.0,0.00028046,2]
[313026883,1706644247716,-500.0,0.00028046,2]
[313026884,1706644247725,-500.0,0.00028046,2]
[313026885,1706644247734,-500.0,0.00028046,2]
[313026886,1706644247744,-500.0,0.00028046,2]
[313026887,1706644247753,-500.0,0.00028046,2]
[313026888,1706644247762,-500.0,0.00028046,2]
[313026889,1706644247772,-500.0,0.00028046,2]
[313026890,1706644247782,-500.0,0.00028046,2]
[313026891,1706644247791,-500.0,0.00028046,2]
[313026892,1706644247801,-500.0,0.00028046,2]
[313026893,1706644247810,-500.0,0.00028046,2]
[313026894,1706644247819,-500.0,0.00028046,2]
[313026895,1706644247828,-500.0,0.00028046,2]
[313026896,1706644247837,-500.0,0.00028046,2]
[313026897,1706644247846,-500.0,0.00028046,2]
[313026898,1706644247855,-500.0,0.00028046,2]
[313026899,1706644247864,-500.0,0.00028046,2]
[313026900,1706644247873,-500.0,0.00028046,2]
[313026901,1706644247882,-500.0,0.00028046,2]
[313026902,1706644247891,-500.0,0.00028046,2]
[313026903,1706644247901,-500.0,0.00028046,2]
[313026904,1706644247910,-500.0,0.00028046,2]
[313026905,1706644247919,-500.0,0.00028046,2]
[313026906,1706644247928,-500.0,0.00028046,2]
[313026907,1706644247937,-500.0,0.00028046,2]
[313026908,1706644247945,-500.0,0.00028046,2]
[313026909,1706644247954,-500.0,0.00028046,2]
[313026910,1706644247963,-500.0,0.00028046,2]
[313026911,1706644247972,-500.0,0.00028046,2]
[313026912,1706644247981,-500.0,0.00028046,2]
[313026913,1706644247990,-500.0,0.00028046,2]
[313026914,1706644247999,-500.0,0.00028046,2]
[313026915,1706644248008,-500.0,0.00028046,2]
[313026916,1706644248016,-500.0,0.00028046,2]
[313026917,1706644248028,-500.0,0.00028046,2]
[313026918,1706644248037,-500.0,0.00028046,2]
[313026919,1706644248046,-500.0,0.00028046,2]
[313026920,1706644248055,-500.0,0.00028046,2]
[313026921,1706644248063,-500.0,0.00028046,2]
[313026922,1706644248073,-500.0,0.00028046,2]
[313026923,1706644248082,-500.0,0.00028046,2]
[313026924,1706644248091,-500.0,0.00028046,2]
[313026925,1706644248100,-500.0,0.00028046,2]
[313026926,1706644248108,-500.0,0.00028046,2]
[313026927,1706644248117,-500.0,0.00028046,2]
[313026928,1706644248126,-500.0,0.00028046,2]
[313026929,1706644248135,-500.0,0.00028046,2]
[313026930,1706644248144,-500.0,0.00028046,2]
[313026931,1706644248152,-500.0,0.00028046,2]
[313026932,1706644248161,-500.0,0.00028046,2]
[313026933,1706644248170,-1313.93,0.00028046,2]
[313026934,1706644248180,-768.75,0.00028099,2]
[313026935,1706644248189,-6630.76,0.00028189,2]
[313026936,1706644248198,-167.09,0.00028219,2]
[313026937,1706644248207,-1313.93,0.00028262,2]
[313026938,1706644248215,-167.0,0.00028307,2]
[313026939,1706644248224,-6630.76,0.00028347,2]
[313026940,1706644248233,-2241.5,0.00028362,2]
[313026941,1706644248242,-1313.93,0.00028479,2]
[313026942,1706644248251,-96039.4623999,0.00028486,2]
[313026943,1706644248260,-150.0,0.00028493,2]
[313026944,1706644248270,-6630.76,0.00028505,2]
[313026945,1706644248279,-6630.76,0.00028664,2]
[313026946,1706644248288,-1313.93,0.00028695,2]
[313026947,1706644248297,-153.48051278,0.00028733,2]
[313026948,1706644248306,-155.0,0.00028767,2]
[313026949,1706644248314,-6630.76,0.00028822,2]
[313026950,1706644248323,-762.36,0.00028898,2]
[313026951,1706644248332,-1313.93,0.00028911,2]
[313026952,1706644248341,-768.75,0.00028944,2]
[313026954,1706644248350,-1350.0,0.00029,3]
[313026955,1706644248359,-155.24545507,0.00029,2]
[313026956,1706644248369,-150.0,0.00029041,2]
[313026957,1706644248378,-167.09,0.00029041,2]
[313026958,1706644248387,-2877.90932172,0.00029082,2]
[313026959,1706644248396,-1313.93,0.00029128,2]
[313026960,1706644248406,-1249.0,0.00029321,2]
[313026961,1706644248415,-705.0,0.00029321,2]
[313026962,1706644248425,-210.0,0.00029321,2]
[313026963,1706644248434,-2898.0,0.00029321,2]
[313026964,1706644248443,-2271.0,0.00029321,2]
[313026965,1706644248453,-19691.0,0.00029321,2]
[313026966,1706644248462,-1033.0,0.00029321,2]
[313026967,1706644248471,-1313.93,0.00029344,2]
[313026968,1706644248480,-206.0,0.0002954,2]
[313026969,1706644248490,-1313.93,0.0002956,2]
[313026970,1706644248499,-150.0,0.00029589,2]
[313026971,1706644248508,-1000.0,0.00029768,2]
[313026972,1706644248518,-1313.93,0.00029777,2]
[313026973,1706644248527,-175.93774684,0.000298,2]
[313026974,1706644248539,-167.09,0.00029863,2]
[313026975,1706644248548,-214.53763548,0.00029878,17]
[313026976,1706644248558,-153.48051278,0.000299,2]
[313026977,1706644248567,-758.08,0.00029944,2]
[313026978,1706644248577,-302.4,0.00029944,2]
[313026979,1706644248587,-12538.8887953,0.00029978,2]
[313026980,1706644248596,-113434.2213333,0.00029978,2]
[313026981,1706644248606,-11292.6820124,0.00029979,2]
[313026982,1706644248617,-102160.2959999,0.00029979,2]
[313026983,1706644248627,-75373.8709333,0.00029979,2]
[313026984,1706644248636,-28344.7114784,0.00029979,2]
[313026985,1706644248645,-39961.2937126,0.00029979,2]
[313026986,1706644248655,-75384.3832,0.00029979,2]
[313026987,1706644248664,-3929.04099024,0.00029993,6]
[313026988,1706644248674,-1313.93,0.00029993,2]
[313026989,1706644248683,-13755.14690209,0.00029996,2]
[313026990,1706644248692,-150.0,0.00029999,2]
[313026991,1706644248702,-150658.417734,0.00029999,2]
[313026992,1706644248711,-430.58358605,0.00029999,2]
[313026993,1706644248721,-500.0,0.00029999,2]
[313026994,1706644248730,-500.0,0.00029999,2]
[313026995,1706644248740,-500.0,0.00029999,2]
[313026996,1706644248749,-500.0,0.00029999,2]
[313026997,1706644248758,-436.62413927,0.00029999,2]
[313026998,1706644248768,-258.94037117,0.00029999,2]
[313026999,1706644248777,-500.0,0.00029999,2]
[313027000,1706644248786,-491.24173605,0.00029999,2]
[313027001,1706644248795,-500.0,0.00029999,2]
[313027002,1706644248804,-500.0,0.00029999,2]
[313027003,1706644248813,-500.0,0.00029999,2]
[313027004,1706644248822,-500.0,0.00029999,2]
[313027005,1706644248831,-470.5513324,0.00029999,2]
[313027006,1706644248840,-500.0,0.00029999,2]
[313027007,1706644248850,-500.0,0.00029999,2]
[313027008,1706644248859,-500.0,0.00029999,2]
[313027009,1706644248868,-500.0,0.00029999,2]
[313027010,1706644248878,-500.0,0.00029999,2]
[313027011,1706644248887,-500.0,0.00029999,2]
[313027012,1706644248896,-500.0,0.00029999,2]
[313027013,1706644248905,-500.0,0.00029999,2]
[313027014,1706644248914,-500.0,0.00029999,2]
[313027015,1706644248923,-280.3296522,0.00029999,2]
[313027016,1706644248932,-210.24723914,0.00029999,2]
[313027017,1706644248942,-194.77606192,0.00029999,2]
[313027018,1706644248951,-261.44575353,0.00029999,2]
[313027019,1706644248960,-210.24723914,0.00029999,2]
[313027020,1706644248969,-816.69318751,0.0003,4]
[313027021,1706644248978,-155.0,0.0003,2]
[313027022,1706644248988,-447.45154929,0.0003,4]
[313027023,1706644248997,-5628.25619398,0.0003,2]
[313027024,1706644249006,-908.21727599,0.0003,4]
[313027025,1706644249015,-8866.8998291,0.0003,4]
[313027026,1706644249025,-375.38823797,0.0003,2]
[313027027,1706644249035,-257.145635,0.0003,4]
[313027028,1706644249044,-463.54889756,0.0003,4]
[313027029,1706644249053,-681200.28144803,0.0003,2]
[313027030,1706644249062,-73146.35628528,0.0003,4]
[313027031,1706644249072,-19084.94415689,0.0003,4]
[313027032,1706644249081,-3782.56646535,0.0003,4]
[313027033,1706644249090,-155.86348195,0.0003,4]
[313027034,1706644249100,-4757.70943985,0.0003,4]
[313027035,1706644249110,-1807.84533026,0.0003,4]
[313027036,1706644249118,-155.0,0.0003,4]
[313027037,1706644249128,-160.95109704,0.0003,4]
[313027038,1706644249138,-155.0,0.0003,4]
[313027039,1706644249147,-11631.50197293,0.0003,4]
[313027040,1706644249157,-693.05480847,0.0003,2]
[313027041,1706644249165,-9641.46795832,0.0003,2]
[313027042,1706644249174,-358.388269,0.0003,2]
[313027043,1706644249184,-582.7666979,0.0003,2]
[313027044,1706644249193,-3289.093573,0.0003,2]
[313027045,1706644249202,-1000.0,0.0003,2]
[313027046,1706644249212,-605.50156,0.0003,2]
[313027047,1706644249221,-605.50156,0.0003,2]
[313027048,1706644249230,-605.50157,0.0003,2]
[313027049,1706644249239,-605.50157,0.0003,2]
[313027050,1706644249248,-605.50156,0.0003,2]
[313027051,1706644249258,-605.50157,0.0003,2]
[313027052,1706644249267,-4000.0,0.0003,2]
[313027053,1706644249277,-2241.5,0.00030006,2]
[313027054,1706644249432,-608.81209181,0.00030052,4]
[313027055,1706644249442,-150.0,0.00030137,2]
[313027056,1706644249450,-13588.75,0.00030137,2]
[313027057,1706644249459,-155.0,0.00030137,2]
[313027058,1706644249469,-150.0,0.00030137,2]
[313027059,1706644249478,-1313.93,0.00030209,2]
[313027060,1706644249487,-1313.93,0.00030425,2]
[313027061,1706644249495,-180.38,0.00030488,2]
[313027062,1706644249504,-2877.90932172,0.00030627,2]
[313027063,1706644249513,-1313.93,0.00030642,2]
[313027064,1706644249522,-167.09,0.00030685,2]
[313027065,1706644249534,-150.0,0.00030685,2]
[313027066,1706644249544,-150.0,0.00030714,2]
[313027067,1706644249553,-1313.93,0.00030858,2]
[313027068,1706644249562,-150.0,0.00030999,2]
[313027069,1706644249574,-1400.0,0.00031,3]
[313027070,1706644249589,-500.0,0.00031053,2]
[313027071,1706644249610,-153.48051278,0.00031067,2]
[313027072,1706644249621,-1313.93,0.00031074,2]
[313027073,1706644249632,-762.36,0.00031162,2]
[313027074,1706644249641,-150.0,0.00031233,2]
[313027075,1706644249651,-150.0,0.00031291,2]
[313027076,1706644249660,-1313.93,0.00031291,2]
[313027077,1706644249670,-265.84115819,0.000314,2]
[313027078,1706644249679,-1308.05261984,0.000314,2]
[313027079,1706644249689,-17550.35815927,0.000314,2]
[313027080,1706644249698,-1027.41095898,0.000314,2]
[313027081,1706644249708,-1522.51494952,0.000314,2]
[313027082,1706644249717,-167.09,0.00031507,2]
[313027083,1706644249727,-1313.93,0.00031507,2]
[313027084,1706644249736,-155.0,0.00031507,2]
[313027085,1706644249745,-155.67,0.00031644,2]
[313027086,1706644249755,-180.0,0.00031644,2]
[313027087,1706644249765,-16997.35,0.000317,2]
[313027088,1706644249774,-152.5561483,0.00031713,2]
[313027089,1706644249784,-150.0,0.00031777,2]
[313027090,1706644249794,-150.0,0.00031781,2]
[313027091,1706644249804,-13755.14690209,0.00031797,2]
[313027092,1706644249813,-8722.84645991,0.000318,4]
[313027093,1706644249822,-113722.186472,0.000318,3]
[313027094,1706644249831,-150.0,0.00031867,2]
[313027095,1706644249841,-13115.55561982,0.00032,4]
[313027096,1706644249850,-155.0,0.00032,2]
[313027097,1706644249860,-155.0,0.00032,4]
[313027098,1706644249869,-333.29592644,0.00032,4]
[313027099,1706644249879,-2877.90932172,0.00032173,3]
[313027100,1706644249889,-153.48051278,0.00032233,2]
[313027101,1706644249898,-1249.0,0.00032321,2]
[313027102,1706644249908,-210.0,0.00032321,2]
[313027103,1706644249917,-471.35,0.00032321,2]
[313027104,1706644249926,-166.38526196,0.00032329,2]
[313027105,1706644249935,-214.53763546,0.00032384,20]
[313027106,1706644249944,-150.0,0.00032444,2]
[313027107,1706644249953,-261.44575353,0.00032513,2]
[313027108,1706644249962,-194.77606192,0.00032513,2]
[313027109,1706644249971,-608.81209181,0.00032514,6]
[313027110,1706644249981,-758.08,0.00032666,2]
[313027111,1706644249990,-302.4,0.00032666,2]
[313027112,1706644250000,-150.0,0.00032777,2]